bitfinex-derivatives/quotes_BNBF0:USTF0_20250309
["timestamp","ask_amount","ask_price","bid_price","bid_amount"]
[1741563083930,0.681,553.9,553.86,0.36110208]
[1741563084126,0.681,553.9,553.87,0.29705348]
[1741563085934,0.681,553.9,553.88,0.29704946]
[1741563086129,0.681,553.9,553.87,0.29704946]
[1741563086747,0.681,553.9,553.88,0.36108904]
[1741563087033,0.681,553.9,553.89,0.29704946]
[1741563090334,0.681,553.9,553.89,0.29698765]
[1741563091431,0.681,553.9,553.88,0.36108904]
[1741563091636,0.681,553.9,553.89,0.29694244]
[1741563093536,0.269,554.22,553.89,0.29700014]
[1741563093731,0.269,554.22,553.9,0.361076]
[1741563093931,0.269,554.22,553.91,0.29700014]
[1741563094136,0.269,554.22,553.92,0.36106296]
[1741563094329,0.269,554.22,553.93,0.29700014]
[1741563094530,0.269,554.22,553.94,0.36104993]
[1741563094732,0.269,554.22,553.95,0.29700014]
[1741563095439,0.269,554.22,553.96,0.36103689]
[1741563095737,0.269,554.22,553.97,0.29700014]
[1741563098442,0.269,554.22,553.98,0.36102386]
[1741563098639,0.269,554.22,553.99,0.29700014]
[1741563099835,0.269,554.22,554.0,0.36101083]
[1741563100035,0.269,554.22,554.01,0.29700014]
[1741563100539,0.269,554.22,554.02,0.36099779]
[1741563100846,0.269,554.22,554.03,0.29700014]
[1741563101039,0.269,554.22,554.04,0.36098476]
[1741563101337,0.269,554.22,554.05,0.29700014]
[1741563101640,0.269,554.22,554.06,0.36097173]
[1741563101843,0.269,554.22,554.07,0.29700014]
[1741563102341,0.269,554.22,554.08,0.3609587]
[1741563102658,0.269,554.22,554.09,0.29700014]
[1741563102868,0.269,554.22,554.1,0.36094567]
[1741563103068,0.269,554.22,554.11,0.29700014]
[1741563103271,0.269,554.22,554.12,0.36093264]
[1741563103471,0.269,554.22,554.13,0.29700014]
[1741563103664,0.269,554.22,554.14,0.36091962]
[1741563104056,0.269,554.22,554.15,0.29700014]
[1741563104355,0.269,554.22,554.16,0.36090659]
[1741563104548,0.269,554.22,554.17,0.29700014]
[1741563104745,0.269,554.22,554.18,0.36089357]
[1741563104943,0.269,554.22,554.19,0.29700014]
[1741563105144,0.269,554.22,554.2,0.36088054]
[1741563105343,0.269,554.22,554.21,0.29700014]
[1741563105644,0.269,554.22,554.21,0.36087403]
[1741563105843,0.269,554.22,554.21,0.65775231]
[1741563109444,0.269,554.22,554.21,0.36087403]
[1741563109744,0.269,554.22,554.21,0.65748645]
[1741563112849,0.269,554.22,554.21,0.36087403]
[1741563113044,0.269,554.22,554.21,0.65743738]
[1741563113641,0.269,554.22,554.21,0.36087403]
[1741563113849,0.269,554.22,554.21,0.65732573]
[1741563115444,0.683,554.27,554.21,0.65732573]
[1741563115660,0.683,554.27,554.22,0.2964517]
[1741563115850,0.683,554.27,554.23,0.2964517]
[1741563116169,0.683,554.27,554.24,0.2964517]
[1741563116351,0.683,554.27,554.25,0.2964517]
[1741563116545,0.683,554.27,554.26,0.65729318]
[1741563120852,0.269,554.59,554.26,0.65729318]
[1741563121049,0.269,554.59,554.27,0.29646546]
[1741563121254,0.269,554.59,554.28,0.36082846]
[1741563121451,0.269,554.59,554.29,0.29646546]
[1741563121656,0.269,554.59,554.3,0.36081544]
[1741563121857,0.269,554.59,554.31,0.29646546]
[1741563122158,0.269,554.59,554.32,0.36080242]
[1741563122456,0.269,554.59,554.33,0.29646546]
[1741563122656,0.269,554.59,554.34,0.29646546]
[1741563122851,0.269,554.59,554.35,0.29646546]
[1741563123156,0.269,554.59,554.36,0.29646546]
[1741563123450,0.269,554.59,554.37,0.29646546]
[1741563123656,0.269,554.59,554.33,0.29646546]
[1741563123851,0.269,554.59,554.34,0.29646546]
[1741563124053,0.269,554.59,554.33,0.29646546]
[1741563125355,0.269,554.59,554.32,0.36080242]
[1741563125655,0.269,554.59,554.33,0.29593399]
[1741563126053,0.269,554.59,554.34,0.29593399]
[1741563126251,0.269,554.59,554.35,0.29593399]
[1741563126550,0.269,554.59,554.36,0.29593399]
[1741563126749,0.269,554.59,554.33,0.29593399]
[1741563126954,0.269,554.59,554.34,0.29593399]
[1741563127158,0.269,554.59,554.35,0.29593399]
[1741563127358,0.269,554.59,554.36,0.29593399]
[1741563127558,0.269,554.59,554.37,0.29593399]
[1741563127751,0.269,554.59,554.38,0.29593399]
[1741563127954,0.269,554.59,554.39,0.29593399]
[1741563128149,0.269,554.59,554.4,0.29593399]
[1741563128355,0.269,554.59,554.32,0.36080242]
[1741563128356,0.269,554.59,554.41,0.29593399]
[1741563128556,0.269,554.59,554.42,0.29593399]
[1741563128855,0.269,554.59,554.32,0.36080242]
[1741563129056,0.269,554.59,554.33,0.29597691]
[1741563129359,0.269,554.59,554.34,0.29597691]
[1741563129551,0.269,554.59,554.32,0.36080242]
[1741563129552,0.269,554.59,554.35,0.29597691]
[1741563129757,0.269,554.59,554.33,0.29597691]
[1741563129960,0.269,554.59,554.34,0.29597691]
[1741563130257,0.269,554.59,554.32,0.36080242]
[1741563130258,0.269,554.59,554.35,0.29597691]
[1741563130459,0.269,554.59,554.33,0.29597691]
[1741563130652,0.269,554.59,554.34,0.29597691]
[1741563130857,0.269,554.59,554.35,0.29602429]
[1741563131161,0.269,554.59,554.36,0.29602429]
[1741563131358,0.269,554.59,554.37,0.29602429]
[1741563131558,0.269,554.59,554.38,0.29602429]
[1741563131756,0.269,554.59,554.39,0.29602429]
[1741563131960,0.269,554.59,554.4,0.29602429]
[1741563132160,0.269,554.59,554.41,0.29602429]
[1741563132361,0.269,554.59,554.42,0.29602429]
[1741563132558,0.269,554.59,554.32,0.36080242]
[1741563132761,0.269,554.59,554.33,0.29580511]
[1741563132958,0.269,554.59,554.34,0.29580511]
[1741563133160,0.269,554.59,554.35,0.29580511]
[1741563133357,0.269,554.59,554.36,0.29580511]
[1741563133662,0.768,554.63,554.37,0.29580511]
[1741563133960,0.768,554.63,554.38,0.29580511]
[1741563134157,0.768,554.63,554.39,0.29580511]
[1741563134356,0.768,554.63,554.4,0.29580511]
[1741563134557,0.768,554.63,554.41,0.29580511]
[1741563134761,0.768,554.63,554.42,0.29580511]
[1741563134965,0.768,554.63,554.43,0.29580511]
[1741563135463,0.768,554.63,554.44,0.29580511]
[1741563135767,0.768,554.63,554.45,0.29580511]
[1741563135962,0.768,554.63,554.46,0.29580511]
[1741563136167,0.768,554.63,554.47,0.29580511]
[1741563136361,0.768,554.63,554.48,0.29578119]
[1741563136566,0.768,554.63,554.49,0.29578119]
[1741563136869,0.768,554.63,554.5,0.29578119]
[1741563137167,0.768,554.63,554.51,0.29578119]
[1741563137368,0.768,554.63,554.33,0.29578119]
[1741563137561,0.768,554.63,554.34,0.29578119]
[1741563137766,0.768,554.63,554.33,0.29578119]
[1741563137962,0.768,554.63,554.35,0.29578119]
[1741563138166,0.768,554.63,554.36,0.29578119]
[1741563138368,0.768,554.63,554.33,0.29578119]
[1741563138668,0.768,554.63,554.34,0.29578119]
[1741563138868,0.768,554.63,554.32,0.36080242]
[1741563138869,0.768,554.63,554.33,0.29578119]
[1741563139170,0.768,554.63,554.34,0.29578119]
[1741563139365,0.768,554.63,554.33,0.29578119]
[1741563139562,0.768,554.63,554.34,0.29578119]
[1741563139767,0.768,554.63,554.33,0.29578119]
[1741563140065,0.768,554.63,554.32,0.36080242]
[1741563140370,0.768,554.63,554.33,0.29650787]
[1741563140568,0.768,554.63,554.34,0.29650787]
[1741563140767,0.768,554.63,554.35,0.29650787]
[1741563140967,0.768,554.63,554.36,0.29650787]
[1741563141269,0.768,554.63,554.37,0.29650787]
[1741563141569,0.768,554.63,554.38,0.29650787]
[1741563141970,0.768,554.63,554.39,0.29650787]
[1741563142164,0.768,554.63,554.33,0.29650787]
[1741563142369,0.768,554.63,554.34,0.29650787]
[1741563142670,0.768,554.63,553.99,0.31360392]
[1741563142671,0.768,554.63,554.35,0.29650787]
[1741563142866,0.768,554.63,554.36,0.29650787]
[1741563143169,0.768,554.63,554.37,0.29650787]
[1741563143569,0.768,554.63,554.38,0.29650787]
[1741563143771,0.768,554.63,553.95,0.29650787]
[1741563143969,0.768,554.63,553.96,0.29650787]
[1741563144164,0.768,554.63,553.97,0.29650787]
[1741563144470,0.768,554.63,553.98,0.29650787]
[1741563144670,0.768,554.63,553.99,0.29650787]
[1741563144870,0.768,554.63,554.0,0.29650787]
[1741563145071,0.768,554.63,554.01,0.29650787]
[1741563145272,0.768,554.63,554.02,0.29669322]
[1741563145472,0.768,554.63,553.98,1.3329422]
[1741563145673,0.768,554.63,553.99,0.29676296]
[1741563145870,0.768,554.63,554.0,0.29676296]
[1741563146072,0.768,554.63,554.01,0.29676296]
[1741563146271,0.768,554.63,554.02,0.29676296]
[1741563146670,0.768,554.63,554.03,0.29676296]
[1741563146870,0.768,554.63,554.04,0.29676296]
[1741563147068,0.768,554.63,554.05,0.29676296]
[1741563147271,0.768,554.63,554.06,0.29676296]
[1741563147469,0.768,554.63,554.07,0.29676296]
[1741563147672,0.768,554.63,553.72,2.7464089]
[1741563147673,0.768,554.63,554.08,0.29676296]
[1741563147975,0.269,555.12,554.09,0.29676296]
[1741563148174,0.269,555.12,553.88,1.3329422]
[1741563148175,0.269,555.12,554.1,0.29676296]
[1741563148478,0.269,555.12,554.11,0.29676296]
[1741563148677,0.269,555.12,554.12,0.29676296]
[1741563148876,0.31373115,555.16,553.88,1.3329422]
[1741563149079,0.31373115,555.16,553.89,0.29682162]
[1741563149375,8.01676375,555.4,553.9,0.29685723]
[1741563149576,8.01676375,555.39,553.91,0.29685723]
[1741563149779,8.01676375,555.38,553.92,0.29685723]
[1741563150076,8.01676375,555.37,553.93,0.29685723]
[1741563150274,8.01676375,555.36,553.93,0.29685723]
[1741563150478,8.01676375,555.35,553.94,0.29685723]
[1741563150678,8.01676375,555.34,553.95,0.29685723]
[1741563150874,8.01686124,555.33,553.95,0.29685723]
[1741563151176,8.01686124,555.33,553.79,1.3329422]
[1741563151177,2.8755041,555.32,553.96,0.29685723]
[1741563151374,1.07490401,555.31,553.97,0.29685723]
[1741563151671,1.07490401,555.31,553.98,0.29685723]
[1741563151871,1.37544692,555.3,553.99,0.29685723]
[1741563152076,1.37544692,555.3,554.0,0.29685723]
[1741563152077,4.51995102,555.3,554.0,0.29685723]
[1741563152277,1.07655706,555.29,554.01,0.29685723]
[1741563152477,1.37544692,555.29,554.02,0.29685723]
[1741563152678,1.37544692,555.29,554.03,0.29680951]
[1741563152878,1.37544692,555.29,554.04,0.29680951]
[1741563153181,1.37544692,555.28,554.05,0.29680951]
[1741563153477,1.37544692,555.28,554.06,0.29680951]
[1741563153674,0.269,555.3,554.07,0.29680951]
[1741563153977,0.269,555.3,554.08,0.29680951]
[1741563154177,0.269,555.3,554.09,0.29680951]
[1741563154579,0.269,555.3,554.1,0.29680951]
[1741563154781,0.269,555.3,554.11,0.29680951]
[1741563155078,0.269,555.3,553.59,0.31366894]
[1741563155079,0.269,555.3,554.12,0.29680951]
[1741563155276,0.269,555.3,554.13,0.29680951]
[1741563155477,0.269,555.3,554.14,0.2967694]
[1741563155673,0.269,555.3,554.15,0.2967694]
[1741563155872,0.269,555.3,554.16,0.2967694]
[1741563156074,2.87967388,555.29,554.16,0.2967694]
[1741563156279,7.48714993,555.28,553.69,0.2967694]
[1741563156575,11.61451338,555.27,553.7,0.2967694]
[1741563156880,8.02775929,555.26,553.71,0.2967694]
[1741563157081,8.02775929,555.25,553.72,0.2967694]
[1741563157379,8.02775929,555.24,553.73,0.2967694]
[1741563157580,8.02775929,555.23,553.74,0.2967694]
[1741563157785,8.02775929,555.22,553.75,0.2967694]
[1741563157978,11.61632504,555.21,553.76,0.2967694]
[1741563158182,4.6838902,555.2,553.77,0.29693871]
[1741563158375,5.14765464,555.19,553.78,0.29693871]
[1741563158575,8.03012751,555.18,553.79,0.29693871]
[1741563158774,3.58675409,555.19,553.52,1.3329422]
[1741563158775,8.03012688,555.17,553.8,0.29693871]
[1741563158981,8.03014423,555.16,553.81,0.29693871]
[1741563159177,7.48945597,555.15,553.82,0.29693871]
[1741563159382,7.48945597,555.14,553.83,0.29693871]
[1741563159583,7.48945597,555.13,553.84,0.29693871]
[1741563159784,7.48945597,555.12,553.84,0.29693871]
[1741563159979,7.48945597,555.11,553.85,0.29693871]
[1741563160185,7.48945597,555.1,553.53,0.29693871]
[1741563160386,7.48945597,555.09,553.54,0.29693871]
[1741563160682,7.48945597,555.08,553.55,0.29693871]
[1741563160878,7.48945597,555.07,553.56,0.29693871]
[1741563161078,7.48945597,555.06,553.57,0.29693871]
[1741563161280,2.88048109,555.05,553.42,0.31380612]
[1741563161482,1.07906376,555.04,553.43,0.29695728]
[1741563161678,1.37544692,555.04,553.42,0.31380612]
[1741563161984,1.37544692,555.04,553.44,0.29694413]
[1741563162177,1.37544692,555.03,553.43,0.29694413]
[1741563162378,1.37544692,555.03,553.44,0.29694413]
[1741563162577,1.37544692,555.03,553.45,0.29694413]
[1741563162779,1.37544692,555.03,553.46,0.29694413]
[1741563162985,1.37544692,555.15,553.47,0.29694413]
[1741563163279,1.37544692,555.15,553.48,0.29694413]
[1741563163484,1.37544692,555.15,553.49,0.29694413]
[1741563163683,4.25676905,555.16,553.5,0.29694413]
[1741563163880,2.88132213,555.15,553.51,0.29694413]
[1741563164086,1.07937657,555.14,553.52,0.29694413]
[1741563164281,1.37544692,555.13,553.53,0.29694413]
[1741563164486,1.37544692,555.13,553.54,0.29694413]
[1741563164686,1.689287,555.12,553.55,0.29694413]
[1741563164983,4.25677132,555.11,553.45,0.31384008]
[1741563165281,2.8813244,555.1,553.46,0.2969219]
[1741563165490,1.37544692,555.11,553.47,0.2969219]
[1741563165682,1.37544692,555.1,553.48,0.2969219]
[1741563165883,1.37544692,555.1,553.49,0.2969219]
[1741563166086,1.37544692,555.1,553.45,0.31384008]
[1741563166087,1.37544692,555.1,553.51,0.36133041]
[1741563166283,1.37544692,555.09,553.52,0.2969219]
[1741563166486,1.37544692,555.09,553.54,0.36131083]
[1741563166986,1.37544692,555.09,553.55,0.2969219]
[1741563167181,1.37544692,555.08,553.56,0.2969219]
[1741563167383,2.45388992,555.11,553.57,0.2969219]
[1741563167582,2.88030953,555.1,553.58,0.2969219]
[1741563167790,2.88030953,555.1,553.6,0.36127167]
[1741563167791,0.31381885,555.08,553.6,0.36127167]
[1741563168291,1.37544692,555.07,553.61,0.2969219]
[1741563168490,1.37544692,555.07,553.63,0.36125209]
[1741563168686,1.37544692,555.07,553.64,0.2969219]
[1741563168889,1.37544692,555.07,553.66,0.36123252]
[1741563169089,1.37544692,555.06,553.67,0.2969219]
[1741563169289,1.37544692,555.06,553.69,0.36121295]
[1741563169488,1.37544692,555.06,553.7,0.2969219]
[1741563169692,1.37544692,555.06,553.72,0.36119338]
[1741563169892,1.37544692,555.05,553.73,0.2969219]
[1741563170089,1.37544692,555.05,553.75,0.36117381]
[1741563170392,1.37544692,555.04,553.76,0.29695772]
[1741563170589,4.25539155,555.04,553.78,0.36115424]
[1741563170794,4.25539155,555.03,553.79,0.29695772]
[1741563170993,6.46607313,555.02,553.8,0.29695772]
[1741563171193,1.07758654,555.01,553.8,0.29695772]
[1741563171388,3.5861285,555.02,553.82,0.36112816]
[1741563171694,3.5861285,555.02,553.83,0.29695772]
[1741563171894,1.37544692,555.01,553.85,0.3611086]
[1741563172294,1.37544692,555.01,553.86,0.29695772]
[1741563172491,1.37544692,555.0,553.86,0.29695772]
[1741563172689,1.37544692,555.0,553.88,0.36108904]
[1741563172893,1.37544692,554.99,553.89,0.29695772]
[1741563173094,1.37544692,554.99,553.9,0.29695772]
[1741563173291,1.37544692,555.03,553.91,0.29695772]
[1741563173495,1.37544692,555.03,553.92,0.65802068]
[1741563173697,0.31377641,554.98,553.94,0.36104993]
[1741563173895,0.31377641,554.98,553.95,0.29695772]
[1741563174198,0.31377641,554.98,553.97,0.36103038]
[1741563174495,0.31377641,554.98,553.98,0.29695772]
[1741563174695,0.31377641,554.98,554.0,0.36101083]
[1741563174896,0.31377641,554.98,554.01,0.29695772]
[1741563175096,0.31377641,554.98,554.03,0.36099128]
[1741563175296,0.31377641,554.98,554.04,0.29695772]
[1741563175497,0.31377641,554.98,554.06,0.36097173]
[1741563175895,0.31377641,554.98,554.07,0.29695772]
[1741563176092,0.31377641,554.98,554.09,0.36095219]
[1741563176292,0.269,554.97,554.1,0.29695772]
[1741563176494,0.269,554.97,554.12,0.36093264]
[1741563176694,0.58273256,554.97,554.13,0.29695772]
[1741563176891,0.58273256,554.97,554.15,0.36091311]
[1741563177197,0.58273256,554.97,554.16,0.29695772]
[1741563177496,0.58273256,554.97,554.18,0.36089357]
[1741563177697,1.37544692,554.96,554.19,0.29695772]
[1741563177998,1.37544692,554.96,554.2,0.36088054]
[1741563178193,1.37544692,554.96,554.21,0.29695772]
[1741563178398,1.37544692,554.95,554.21,0.29695772]
[1741563178699,1.07512277,554.94,554.21,0.29695772]
[1741563178899,1.07512277,554.93,554.21,0.29695772]
[1741563179097,4.597922,554.93,554.21,0.29695772]
[1741563179299,2.87772454,554.92,554.2,0.36088054]
[1741563179493,2.87772454,554.91,554.21,0.29705144]
[1741563179700,2.87772454,554.9,554.21,0.29705144]
[1741563179900,1.07512277,554.89,554.21,0.29705144]
[1741563180301,1.37544692,554.88,554.21,0.29705144]
[1741563180499,2.45056969,554.88,554.21,0.29705144]
[1741563180706,2.45056969,554.88,554.22,0.36086752]
[1741563180707,1.68925445,554.88,554.22,0.36086752]
[1741563181004,1.37544692,554.87,554.23,0.29705144]
[1741563181707,1.37544692,554.86,554.23,0.29705144]
[1741563182403,2.35844692,554.85,554.24,0.2970481]
[1741563182707,2.35844692,554.85,554.25,0.65789609]
[1741563182908,0.983,554.85,554.26,0.2970481]
[1741563183202,0.983,554.85,554.25,0.36084799]
[1741563183607,1.37544692,554.84,554.25,0.36084799]
[1741563183806,3.49226878,554.84,554.25,0.36084799]
[1741563184008,4.25134322,554.83,554.25,0.36084799]
[1741563184211,2.87532656,554.82,554.25,0.36084799]
[1741563184509,1.07215001,554.81,554.25,0.36084799]
[1741563184705,4.65496411,554.81,554.25,0.36084799]
[1741563184905,4.59060341,554.8,554.25,0.36084799]
[1741563185106,6.45814066,554.79,554.25,0.36084799]
[1741563185311,3.5828141,554.79,554.25,0.36084799]
[1741563185509,1.37544692,554.78,554.26,0.29708026]
[1741563186014,1.37544692,554.78,554.25,0.36084799]
[1741563186220,1.37544692,554.77,554.26,0.29708157]
[1741563186906,2.5120519,554.84,554.26,0.29708157]
[1741563186907,1.37544692,554.83,554.26,0.29708157]
[1741563187608,0.31391085,554.84,554.26,0.29708157]
[1741563187919,1.68935777,554.84,554.27,0.36083497]
[1741563188112,1.68935777,554.84,554.28,0.29708157]
[1741563188314,2.44724386,554.83,554.28,0.29708157]
[1741563188511,2.44724386,554.83,554.27,0.36083497]
[1741563188711,1.37544692,554.82,554.27,0.36083497]
[1741563189114,1.37544692,554.81,554.27,0.36083497]
[1741563189714,1.37544692,554.8,554.27,0.36083497]
[1741563190110,1.37544692,554.83,554.27,0.36083497]
[1741563190310,1.37544692,554.82,554.27,0.36083497]
[1741563191416,1.37544692,554.81,554.27,0.36083497]
[1741563191616,0.31391085,554.84,554.27,0.36083497]
[1741563191818,1.376823,554.83,554.27,0.36083497]
[1741563192013,0.31391085,554.84,554.27,0.36083497]
[1741563192415,0.31391085,554.84,554.28,0.29701057]
[1741563192615,0.31391085,554.84,554.27,0.36083497]
[1741563192810,0.31391085,554.84,554.28,0.297012]
[1741563193726,0.31391085,554.84,554.29,0.29701527]
[1741563194026,0.31391085,554.84,554.3,0.65783071]
[1741563194217,0.31391085,554.84,554.31,0.6578242]
[1741563194519,1.3776022,554.92,554.32,0.29701527]
[1741563194713,0.31374529,554.83,554.32,0.29701527]
[1741563194916,1.3776022,554.96,554.32,0.29701527]
[1741563195220,1.3776022,554.95,554.33,0.36079591]
[1741563195416,1.3776022,554.95,554.34,0.29701527]
[1741563195613,1.3776022,554.95,554.35,0.36078289]
[1741563195817,1.3776022,554.95,554.36,0.29701527]
[1741563196019,1.3776022,554.94,554.37,0.36076988]
[1741563196318,1.69135598,554.94,554.38,0.29701527]
[1741563196514,1.69135598,554.94,554.38,0.65777864]
[1741563196719,4.25976316,554.93,554.38,0.36076337]
[1741563197019,4.60903265,554.92,554.39,0.29703468]
[1741563197218,6.46267996,554.91,554.39,0.29703468]
[1741563197419,7.49353924,554.9,554.38,0.36076337]
[1741563197612,7.49353924,554.89,554.38,0.36076337]
[1741563197816,4.60890543,554.88,554.38,0.36076337]
[1741563198017,4.60890543,554.87,554.38,0.36076337]
[1741563198221,8.19104255,554.86,554.38,0.36076337]
[1741563198520,2.88216096,554.85,554.38,0.36076337]
[1741563198716,2.88216096,554.84,554.38,0.36076337]
[1741563199018,1.07946412,554.83,554.38,0.36076337]
[1741563199214,1.07946412,554.82,554.38,0.36076337]
[1741563199416,1.3776022,554.82,554.38,0.36076337]
[1741563199713,2.88216096,554.81,554.38,0.36076337]
[1741563199914,9.34831198,554.8,554.38,0.36076337]
[1741563200214,8.03982347,554.79,554.38,0.36076337]
[1741563200415,11.62034247,554.78,554.38,0.36076337]
[1741563200620,8.03982347,554.77,554.38,0.36076337]
[1741563200820,3.580519,554.78,553.63,1.3329422]
[1741563200821,8.03982347,554.76,553.63,1.3329422]
[1741563201017,7.49876747,554.75,553.65,0.36123904]
[1741563201221,7.49876747,554.74,553.66,0.29718382]
[1741563201425,7.50148424,554.73,553.66,0.29718382]
[1741563201623,7.50148424,554.72,553.68,0.36121947]
[1741563201829,7.50148424,554.71,553.69,0.29718382]
[1741563202023,7.50148424,554.7,553.69,0.29718382]
[1741563202222,4.61585222,554.69,553.68,0.36121947]
[1741563202422,3.580519,554.69,553.69,0.29718131]
[1741563202624,1.08237042,554.68,553.69,0.29718131]
[1741563202923,2.88580962,554.68,553.69,0.29718131]
[1741563203115,2.45997262,554.67,553.69,0.29718131]
[1741563203319,1.08194347,554.66,553.69,0.29718131]
[1741563203518,1.3776022,554.67,553.69,0.29718131]
[1741563203919,1.69156828,554.66,553.69,0.29718131]
[1741563204124,1.69156828,554.66,553.71,0.3611999]
[1741563204325,1.69156828,554.66,553.72,0.29718131]
[1741563204525,1.3776022,554.65,553.74,0.36118033]
[1741563204726,1.3776022,554.65,553.75,0.29718131]
[1741563204926,1.3776022,554.65,553.77,0.36116077]
[1741563205226,1.3776022,554.64,553.78,0.29718131]
[1741563206023,0.31396608,554.66,553.78,0.29718131]
[1741563206224,0.31396608,554.66,553.8,0.3611412]
[1741563206420,1.3776022,554.65,553.81,0.29718131]
[1741563206622,1.3776022,554.65,553.83,0.36112164]
[1741563206822,1.69154279,554.65,553.84,0.29718131]
[1741563207029,2.88678479,554.64,553.86,0.36110208]
[1741563207229,1.69154279,554.65,553.87,0.29718131]
[1741563207522,4.26438885,554.64,553.88,0.36108904]
[1741563207729,4.61960432,554.63,553.89,0.29721096]
[1741563207927,2.88678665,554.62,553.9,0.361076]
[1741563208122,1.08286844,554.61,553.91,0.29721096]
[1741563208526,1.3776022,554.6,553.91,0.29721096]
[1741563208730,1.3776022,554.6,553.92,0.36106296]
[1741563208930,1.3776022,554.59,553.93,0.29721096]
[1741563209223,1.3776022,554.59,553.94,0.36104993]
[1741563209429,1.3776022,554.59,553.95,0.29718082]
[1741563209629,1.3776022,554.58,553.96,0.36103689]
[1741563210025,1.3776022,554.58,553.97,0.29718082]
[1741563210227,1.08301707,554.63,553.98,0.36102386]
[1741563210427,1.38775396,554.63,553.99,0.29718082]
[1741563210624,1.38775396,554.63,554.0,0.36101083]
[1741563210824,1.38775396,554.62,554.01,0.29718082]
[1741563211033,2.47053883,554.62,554.02,0.36099779]
[1741563211332,4.27427266,554.61,554.03,0.29721116]
[1741563211630,2.8865187,554.6,554.03,0.29721116]
[1741563211831,7.50489544,554.59,554.03,0.29721116]
[1741563212030,2.8865187,554.58,554.03,0.29721116]
[1741563212231,8.22575223,554.57,554.03,0.29721116]
[1741563212427,2.8865187,554.56,554.03,0.29721116]
[1741563212633,1.08278487,554.55,554.03,0.29721116]
[1741563212832,2.8865187,554.55,554.02,0.36099779]
[1741563213031,4.61821049,554.54,554.02,0.36099779]
[1741563213232,11.11224143,554.53,554.02,0.36099779]
[1741563213431,4.61821049,554.52,554.02,0.36099779]
[1741563213732,6.4941513,554.51,554.02,0.36099779]
[1741563213931,2.8865187,554.5,554.02,0.36099779]
[1741563214135,4.69041747,554.49,554.02,0.36099779]
[1741563214325,2.8865187,554.48,554.02,0.36099779]
[1741563214526,1.08278487,554.47,554.02,0.36099779]
[1741563214831,4.69041747,554.47,554.02,0.36099779]
[1741563215132,4.27427266,554.46,554.02,0.36099779]
[1741563215329,2.8865187,554.45,554.02,0.36099779]
[1741563215524,1.08278487,554.44,554.02,0.36099779]
[1741563215731,2.47053883,554.44,554.02,0.36099779]
[1741563216129,1.38775396,554.43,554.02,0.36099779]
[1741563216626,1.65775396,554.42,554.02,0.36099779]
[1741563217031,0.27,554.42,554.02,0.36099779]
[1741563218829,0.31405958,554.41,554.03,0.29721136]
[1741563220129,0.27,554.42,554.03,0.29721136]
[1741563220635,0.27,554.42,554.04,0.36098476]
[1741563221039,0.27,554.42,554.05,0.29716154]
[1741563221239,0.27,554.42,554.06,0.36097173]
[1741563221439,0.27,554.42,554.07,0.29716154]
[1741563221641,0.27,554.42,554.08,0.3609587]
[1741563221942,0.27,554.42,554.09,0.29716154]
[1741563222136,0.27,554.42,554.09,0.65811373]
[1741563222340,0.27,554.42,554.1,0.29716154]
[1741563222740,0.27,554.42,554.11,0.36093916]
[1741563222943,0.27,554.42,554.12,0.29716154]
[1741563223143,0.27,554.42,554.13,0.36092613]
[1741563223339,0.27,554.42,554.14,0.29716154]
[1741563224137,0.27,554.42,554.14,0.65808116]
[1741563224339,0.27,554.42,554.15,0.65807465]
[1741563224541,0.27,554.42,554.16,0.65806813]
[1741563224743,0.27,554.42,554.17,0.65806162]
[1741563225043,0.27,554.42,554.18,0.65805511]
[1741563225244,0.27,554.42,554.19,0.29716154]
[1741563227436,0.27,554.42,554.19,0.6580486]
[1741563227637,0.27,554.42,554.2,0.65804208]
[1741563227841,0.27,554.42,554.21,0.65803557]
[1741563228145,0.27,554.42,554.22,0.65802906]
[1741563228446,0.27,554.42,554.23,0.65802255]
[1741563228646,0.964,554.44,554.24,0.65801604]
[1741563228848,0.964,554.44,554.25,0.65800953]
[1741563229042,0.964,554.44,553.67,1.3329422]
[1741563229043,0.964,554.44,554.26,0.65800302]
[1741563229241,0.964,554.44,554.27,0.29705241]
[1741563229846,0.964,554.44,554.28,0.36082846]
[1741563230045,0.964,554.44,554.29,0.29705241]
[1741563230246,0.964,554.44,554.3,0.36081544]
[1741563230545,0.964,554.44,554.31,0.29705241]
[1741563232944,0.964,554.44,554.32,0.29698033]
[1741563233144,0.964,554.44,554.33,0.29698033]